bitfinex/quotes_SOLUSD_20240726
["timestamp","ask_amount","ask_price","bid_price","bid_amount"]
[1722011045446,0.17,181.81,181.71,13.11]
[1722011045447,13.28,181.81,181.75,13.11]
[1722011045649,0.54764215,181.8,181.75,13.11]
[1722011046835,13.65764215,181.8,181.75,13.11]
[1722011047243,0.54764215,181.79,181.75,13.11]
[1722011049628,13.65764215,181.79,181.68,2.23586581]
[1722011049856,13.65764215,181.78,181.66,7.71150087]
[1722011050052,13.11,181.77,181.72,13.11]
[1722011050431,0.17,181.76,181.71,13.11]
[1722011051047,13.11,181.77,181.71,13.11]
[1722011051249,0.54764215,181.76,181.73,13.11]
[1722011051625,13.11,181.78,181.73,13.11]
[1722011051826,0.54764215,181.77,181.73,13.11]
[1722011052231,13.11,181.81,181.75,13.11]
[1722011052427,16.2696,181.83,181.77,13.11]
[1722011052755,29.3796,181.83,181.77,13.11]
[1722011052919,13.11,181.82,181.77,13.11]
[1722011053123,13.11,181.78,181.66,9.91670603]
[1722011053329,13.11,181.77,181.72,13.11]
[1722011053529,13.11,181.77,181.71,13.11]
[1722011053736,0.54764215,181.76,181.71,13.11]
[1722011054260,0.54764215,181.76,181.72,13.11]
[1722011054628,13.11,181.77,181.72,13.11]
[1722011054941,0.54764215,181.76,181.72,13.11]
[1722011055466,13.11,181.78,181.72,13.11]
[1722011055961,0.54764215,181.77,181.72,13.11]
[1722011057332,0.54764215,181.77,181.73,13.11]
[1722011057536,13.11,181.78,181.73,13.11]
[1722011057841,0.54764215,181.77,181.73,13.11]
[1722011058460,0.54764215,181.77,181.72,13.11]
[1722011059881,0.54764215,181.77,181.73,13.11]
[1722011061460,0.54764215,181.8,181.74,13.11]
[1722011061662,13.11,181.8,181.74,13.11]
[1722011061956,16.2696,181.83,181.76,13.11]
[1722011062285,0.54764215,181.82,181.77,13.11]
[1722011062657,13.65764215,181.82,181.77,13.11]
[1722011063363,13.65764215,181.82,181.76,13.11]
[1722011064356,13.65764215,181.82,181.77,13.11]
[1722011064581,13.65764215,181.82,181.76,13.11]
[1722011065278,16.2696,181.83,181.79,13.11]
[1722011065482,0.54764215,181.83,181.8,13.11]
[1722011065867,0.54764215,181.83,181.73,6.1602]
[1722011065868,0.54764215,181.83,181.81,13.11]
[1722011066279,0.54764215,181.85,181.8,13.11]
[1722011066867,0.54764215,181.85,181.81,13.11]
[1722011067107,0.54764215,181.85,181.82,13.11]
[1722011067470,0.7916266,181.93,181.84,13.11]
[1722011067684,13.11,181.92,181.86,13.11]
[1722011067885,13.11,181.92,181.87,13.11]
[1722011068297,13.11,181.92,181.86,13.11]
[1722011068567,13.11,181.9,181.85,13.11]
[1722011068797,13.65764215,181.89,181.83,13.11]
[1722011069100,18.6087,181.86,181.8,13.11]
[1722011069301,0.54764215,181.85,181.8,13.11]
[1722011069474,13.65764215,181.85,181.79,13.11]
[1722011069683,13.11,181.84,181.79,13.11]
[1722011069873,0.54764215,181.83,181.79,13.11]
[1722011070299,0.54764215,181.83,181.8,13.11]
[1722011070881,0.54764215,181.84,181.8,13.11]
[1722011073105,13.65764215,181.84,181.79,13.11]
[1722011073408,0.54764215,181.84,181.8,13.11]
[1722011075404,13.11,181.86,181.81,13.11]
[1722011075775,13.11,181.87,181.81,13.11]
[1722011076507,13.11,181.86,181.8,13.11]
[1722011076693,13.65764215,181.85,181.79,13.11]
[1722011077276,13.11,181.86,181.8,13.11]
[1722011078774,0.54764215,181.85,181.8,13.11]
[1722011080781,13.65764215,181.85,181.8,13.11]
[1722011081389,13.11,181.84,181.79,13.11]
[1722011081711,0.54764215,181.83,181.79,13.11]
[1722011082003,0.54764215,181.83,181.78,13.11]
[1722011083607,0.54764215,181.83,181.79,13.11]
[1722011083805,0.54764215,181.83,181.73,15.1641]
[1722011083989,13.11,181.82,181.76,13.11]
[1722011084190,13.11,181.83,181.77,13.11]
[1722011084412,13.11,181.82,181.77,13.11]
[1722011084736,0.54764215,181.81,181.77,13.11]
[1722011086012,0.54764215,181.85,181.78,13.11]
[1722011086219,13.11,181.84,181.78,13.11]
[1722011086386,13.11,181.84,181.73,15.1641]
[1722011086583,13.11,181.84,181.79,13.11]
[1722011086785,13.11,181.83,181.78,13.11]
[1722011087397,13.11,181.83,181.77,13.11]
[1722011087597,0.54764215,181.82,181.77,13.11]
[1722011087914,13.65764215,181.82,181.77,13.11]
[1722011088212,13.11,181.82,181.77,13.11]
[1722011088400,13.11,181.83,181.77,13.11]
[1722011089010,13.11,181.82,181.77,13.11]
[1722011089204,13.11,181.83,181.77,13.11]
[1722011093815,13.11,181.83,181.78,13.11]
[1722011095191,13.65764215,181.83,181.78,13.11]
[1722011095396,0.54764215,181.82,181.78,13.11]
[1722011096012,13.11,181.83,181.78,13.11]
[1722011096524,13.11,181.83,181.73,15.1641]
[1722011096690,13.65764215,181.82,181.77,13.11]
[1722011097002,13.11,181.82,181.77,13.11]
[1722011097203,13.11,181.83,181.77,13.11]
[1722011097405,13.11,181.83,181.78,13.11]
[1722011097726,13.11,181.84,181.78,13.11]
[1722011097924,0.17,181.83,181.78,13.11]
[1722011098223,13.28,181.83,181.78,13.11]
[1722011098421,0.54764215,181.82,181.78,13.11]
[1722011099099,0.54764215,181.82,181.74,20.0]
[1722011099295,19.15754215,181.82,181.76,13.11]
[1722011099899,13.65764215,181.82,181.76,13.11]
[1722011100501,13.11,181.82,181.76,13.11]
[1722011100700,13.28,181.83,181.78,13.11]
[1722011101827,0.71764215,181.83,181.78,13.11]
[1722011102403,13.11,181.84,181.78,13.11]
[1722011102604,13.11,181.84,181.79,13.11]
[1722011102909,13.11,181.84,181.78,13.11]
[1722011103111,13.11,181.84,181.79,13.11]
[1722011103417,13.28,181.85,181.79,13.11]
[1722011103621,13.11,181.84,181.79,13.11]
[1722011104335,0.54764215,181.83,181.78,13.11]
[1722011106119,19.15724215,181.83,181.77,13.11]
[1722011106326,0.54764215,181.82,181.77,13.11]
[1722011106517,13.65764215,181.82,181.77,13.11]
[1722011107130,13.11,181.82,181.77,13.11]
[1722011107303,13.11,181.83,181.77,13.11]
[1722011108814,0.54764215,181.82,181.77,13.11]
[1722011109315,13.65764215,181.82,181.77,13.11]
[1722011109928,13.11,181.83,181.78,13.11]
[1722011110618,0.54764215,181.82,181.78,13.11]
[1722011111530,0.54764215,181.82,181.77,13.11]
[1722011111727,13.11,181.83,181.77,13.11]
[1722011111936,0.54764215,181.82,181.77,13.11]
[1722011112526,0.54764215,181.82,181.78,13.11]
[1722011113032,13.11,181.83,181.78,13.11]
[1722011113434,0.54764215,181.82,181.78,13.11]
[1722011113938,0.54764215,181.82,181.77,13.11]
[1722011114516,13.11,181.83,181.78,13.11]
[1722011115418,0.54764215,181.82,181.78,13.11]
[1722011115623,13.11,181.84,181.78,13.11]
[1722011116028,0.17,181.83,181.78,13.11]
[1722011117038,0.71764215,181.83,181.78,13.11]
[1722011117542,13.82764215,181.83,181.78,13.11]
[1722011119042,13.82764215,181.83,181.77,13.11]
[1722011119752,13.11,181.82,181.76,13.11]
[1722011119945,0.54764215,181.81,181.76,13.11]
[1722011120148,0.54764215,181.81,181.77,13.11]
[1722011120828,0.54764215,181.81,181.74,20.0]
[1722011121044,13.11,181.8,181.74,33.11]
[1722011121254,0.54764215,181.79,181.74,13.11]
[1722011121651,13.11,181.8,181.74,13.11]
[1722011121840,13.11,181.8,181.75,13.11]
[1722011122553,13.11,181.81,181.76,13.11]
[1722011122759,13.11,181.82,181.76,13.11]
[1722011122958,0.17,181.81,181.76,13.11]
[1722011123549,13.28,181.81,181.76,13.11]
[1722011126049,0.54764215,181.8,181.76,13.11]
[1722011127133,13.65764215,181.8,181.75,13.11]
[1722011127336,13.11,181.78,181.69,15.405]
[1722011127643,0.54764215,181.77,181.72,13.11]
[1722011128453,13.11,181.78,181.69,15.405]
[1722011128454,13.11,181.78,181.73,13.11]
[1722011129456,13.28,181.79,181.74,13.11]
[1722011129860,0.54764215,181.78,181.69,15.405]
[1722011130049,0.54764215,181.78,181.73,13.11]
[1722011131366,0.54764215,181.78,181.74,13.11]
[1722011131557,13.28,181.79,181.74,13.11]
[1722011131750,13.28,181.79,181.73,13.11]
[1722011131956,13.11,181.78,181.73,13.11]
[1722011132156,13.28,181.79,181.73,13.11]
[1722011132357,0.54764215,181.78,181.73,13.11]
[1722011133460,22.7026,181.82,181.75,13.11]
[1722011133665,22.7026,181.82,181.69,15.405]
[1722011133666,13.65764215,181.81,181.76,13.11]
[1722011134548,13.11,181.8,181.69,15.405]
[1722011134749,0.54764215,181.81,181.76,13.11]
[1722011134750,0.54764215,181.79,181.76,13.11]
[1722011134976,0.54764215,181.79,181.7,65.0]
[1722011135178,0.54764215,181.79,181.76,13.11]
[1722011135660,13.11,181.81,181.76,13.11]
[1722011135974,13.65764215,181.81,181.76,13.11]
[1722011136772,0.54764215,181.81,181.77,13.11]
[1722011137072,13.65764215,181.81,181.76,13.11]
[1722011137646,0.54764215,181.81,181.77,13.11]
[1722011137948,35.9826,181.82,181.77,13.11]
[1722011138247,22.7026,181.82,181.77,13.11]
[1722011138777,22.7026,181.82,181.78,13.11]
[1722011138778,16.2704,181.82,181.78,13.11]
[1722011139148,16.2704,181.82,181.79,13.11]
[1722011139461,13.11,181.85,181.8,13.11]
[1722011139662,13.11,181.85,181.79,13.11]
[1722011139866,13.11,181.85,181.8,13.11]
[1722011140070,35.3999,181.86,181.81,13.11]
[1722011140750,0.54764215,181.85,181.81,13.11]
[1722011141850,13.65764215,181.85,181.8,13.11]
[1722011143451,15.9587,181.86,181.83,13.11]
[1722011145294,0.54764215,181.85,181.83,13.11]
[1722011145578,15.9587,181.86,181.83,13.11]
[1722011146667,13.11,181.89,181.83,13.11]
[1722011146947,21.4962,181.9,181.83,13.11]
[1722011147158,13.65764215,181.89,181.84,13.11]
[1722011147577,13.11,181.89,181.84,13.11]
[1722011148783,0.7916266,181.93,181.87,13.11]
[1722011148784,5.4969,181.92,181.87,13.11]
[1722011149075,0.17,181.91,181.86,13.11]
[1722011150079,0.54764215,181.91,181.86,13.11]
[1722011152186,0.54764215,181.91,181.87,13.11]
[1722011152356,28.9195266,181.93,181.87,13.11]
[1722011152676,0.17,181.92,181.87,13.11]
[1722011153380,0.71764215,181.92,181.87,13.11]
[1722011153869,28.9195266,181.93,181.87,13.11]
[1722011154257,0.7916266,181.93,181.89,13.11]
[1722011155086,0.7916266,181.93,181.9,13.11]
[1722011155260,0.54764215,181.92,181.89,13.11]
[1722011155657,1.33926875,181.93,181.89,13.11]
[1722011155857,0.7916266,181.93,181.9,13.11]
[1722011156087,0.7916266,181.93,181.89,13.11]
[1722011156394,0.54764215,181.92,181.88,13.11]
[1722011156589,0.7916266,181.93,181.89,13.11]
[1722011156887,1.33926875,181.93,181.89,13.11]
[1722011157065,0.54764215,181.92,181.82,15.3515]
[1722011157265,0.54764215,181.92,181.87,13.11]
[1722011157465,13.9016266,181.93,181.88,13.11]
[1722011157883,13.65764215,181.92,181.83,20.0]
[1722011158093,13.11,181.91,181.85,13.11]
[1722011158397,0.54764215,181.9,181.85,13.11]
[1722011158692,13.11,181.92,181.86,13.11]
[1722011158991,0.54764215,181.91,181.86,13.11]
[1722011160173,13.65764215,181.91,181.86,13.11]
[1722011162288,0.54764215,181.91,181.86,13.11]
[1722011166110,0.54764215,181.91,181.83,20.0]
[1722011166111,0.7916266,181.93,181.83,20.0]
[1722011166274,13.11,181.91,181.85,13.11]
[1722011166777,6.2882266,181.93,181.85,13.11]
[1722011166778,1.33926875,181.93,181.85,13.11]
[1722011166989,13.11,181.91,181.85,13.11]
[1722011167198,0.54764215,181.9,181.85,13.11]
[1722011167398,13.11,181.91,181.85,13.11]
[1722011168504,0.17,181.92,181.87,13.11]
[1722011169001,0.7916266,181.93,181.89,13.11]
[1722011170203,0.54764215,181.92,181.87,13.11]
[1722011172406,0.7916266,181.93,181.87,13.11]
[1722011172610,14.44926875,181.93,181.87,13.11]
[1722011172989,0.54764215,181.92,181.87,13.11]
[1722011173313,13.9016266,181.93,181.88,13.11]
[1722011173608,0.7916266,181.93,181.88,13.11]
[1722011173906,1.33926875,181.93,181.88,13.11]
[1722011174114,13.9016266,181.93,181.81,20.0]
[1722011174282,14.44926875,181.93,181.88,13.11]
[1722011174484,0.54764215,181.92,181.89,13.11]
[1722011174786,0.7916266,181.93,181.89,13.11]
[1722011174987,0.7916266,181.93,181.9,13.11]
[1722011175286,0.7916266,181.93,181.92,13.11]
[1722011175497,0.7916266,181.93,181.84,1.09947741]
[1722011175498,0.7916266,181.93,181.91,13.11]
[1722011175803,0.7916266,181.93,181.9,13.11]
[1722011177393,0.7916266,181.93,181.89,13.11]
[1722011177602,0.7916266,181.93,181.88,13.11]
[1722011178191,0.7916266,181.93,181.89,13.11]
[1722011180585,0.7916266,181.93,181.92,13.11]
[1722011182205,0.7916266,181.93,181.91,13.11]
[1722011183012,20.7916266,182.11,181.93,15.2826]
[1722011183224,13.11,182.05,181.93,16.38147518]
[1722011183392,13.11,182.03,181.98,13.11]
[1722011183591,13.11,182.03,181.94,20.0]
[1722011183804,13.11,182.03,181.97,13.11]
[1722011184417,5.4933,182.04,181.87,27.57852567]
[1722011184418,13.11,181.98,181.87,27.57852567]
[1722011184626,37.09764215,182.02,181.91,13.11]
[1722011184627,13.11,181.96,181.91,13.11]
[1722011184788,0.54764215,181.95,181.9,13.11]
[1722011185486,13.11,181.95,181.9,13.11]
[1722011186294,13.11,181.95,181.89,13.11]
[1722011187915,13.11,181.96,181.91,13.11]
[1722011189015,0.54764215,182.03,181.94,13.11]
[1722011189317,13.11,182.01,181.96,13.11]
[1722011190825,13.11,182.02,181.97,13.11]
[1722011191414,13.11,182.01,181.96,13.11]
[1722011191641,13.11,182.01,181.95,13.11]
[1722011192330,13.65764215,182.0,181.94,13.11]
[1722011192538,13.11,181.99,181.94,13.11]
[1722011193220,13.28,182.0,181.94,13.11]
[1722011193835,13.11,181.99,181.94,13.11]
[1722011194219,13.28,182.0,181.94,13.11]
[1722011194537,0.54764215,181.99,181.94,13.11]
[1722011195141,13.65764215,181.99,181.94,13.11]
[1722011195327,13.11,181.99,181.94,13.11]
[1722011195645,0.54764215,181.98,181.94,13.11]
[1722011196922,13.11,182.01,181.96,13.11]
[1722011197850,22.1264,182.04,181.97,13.11]
[1722011197851,13.11,182.02,181.97,13.11]
[1722011198035,22.1264,182.04,181.96,1.09899301]
[1722011198036,13.11,182.03,181.98,13.11]
[1722011198559,22.1264,182.04,181.92,6.4828]
[1722011198560,13.11,182.02,181.97,13.11]
[1722011198914,13.11,182.02,181.96,13.11]
[1722011199726,13.11,182.01,181.96,13.11]
[1722011199922,13.11,182.02,181.96,13.11]
[1722011200725,22.1264,182.04,181.96,13.11]
[1722011200921,13.11,182.01,181.97,1.09898123]
[1722011201330,13.11,182.02,181.97,14.20898123]
[1722011201822,22.1264,182.04,181.97,13.11]
[1722011202021,13.11,182.02,181.97,13.11]
[1722011202423,13.11,182.02,181.96,13.11]
[1722011202954,13.11,182.01,181.96,13.11]
[1722011204239,13.11,182.02,181.96,13.11]
[1722011204742,13.11,182.02,181.97,13.11]
[1722011205449,13.11,182.03,181.97,13.11]
[1722011207353,13.65764215,182.03,181.97,13.11]
[1722011207848,13.11,182.01,181.96,13.11]
[1722011208048,13.11,182.0,181.92,6.4828]
[1722011208351,13.11,181.98,181.93,13.11]
[1722011208659,13.11,181.97,181.92,13.11]
[1722011208865,13.11,181.97,181.91,29.7449]
[1722011210059,0.54764215,182.0,181.92,13.11]
[1722011210360,13.11,182.0,181.95,13.11]
[1722011211255,21.0917,182.04,181.96,13.11]
[1722011211256,13.11,182.01,181.96,13.11]
[1722011211443,13.11,182.02,181.96,13.11]
[1722011211845,15.5982,182.04,181.98,13.11]
[1722011212033,13.11,182.03,181.98,13.11]
[1722011212234,0.54764215,182.08,181.98,13.11]
[1722011212235,5.4927,182.06,181.98,13.11]
[1722011212568,13.11,182.04,181.99,13.11]
[1722011212872,5.4927,182.06,182.0,13.11]
[1722011213042,16.4798,182.08,181.93,6.1011]
[1722011213043,21.9719,182.08,182.01,13.11]
[1722011213361,13.11,182.07,182.02,13.11]
[1722011213666,13.11,182.06,182.01,13.11]
[1722011214239,0.54764215,182.05,182.0,13.11]
[1722011214437,13.65764215,182.05,182.0,13.11]
[1722011214837,13.65764215,182.05,181.99,13.11]
[1722011215267,13.11,182.05,181.99,13.11]
[1722011215651,0.54764215,182.04,181.99,13.11]
[1722011216050,20.54764215,182.1,181.99,16.4466]
[1722011216268,13.11,182.05,182.0,13.11]
[1722011217486,13.11,182.04,181.99,13.11]
[1722011217684,13.11,182.05,181.99,13.11]
[1722011217985,0.54764215,182.08,182.02,13.11]
[1722011218188,13.11,182.08,182.03,13.11]
[1722011218600,13.11,182.07,182.01,13.11]
[1722011219191,5.4922,182.08,182.01,13.11]
[1722011219406,0.17,182.09,182.02,13.11]
[1722011219562,0.17,182.09,182.03,13.11]
[1722011219563,13.11,182.09,182.03,13.11]
[1722011220264,18.6015,182.1,182.04,13.11]
[1722011220681,13.11,182.1,182.04,13.11]
[1722011221384,13.0253266,182.11,182.04,13.11]
[1722011221585,13.11,182.1,182.04,13.11]
[1722011222265,13.65764215,182.1,182.04,13.11]
[1722011222586,13.9016266,182.11,182.05,13.11]
[1722011222890,0.7916266,182.11,182.07,13.11]
[1722011224305,1.33926875,182.11,182.07,13.11]
[1722011224796,0.7916266,182.11,182.07,13.11]
[1722011225001,0.7916266,182.11,182.02,6.3546]
[1722011225296,0.7916266,182.11,182.07,13.11]
[1722011225890,1.33926875,182.11,182.07,13.11]
[1722011226097,0.7916266,182.11,182.03,65.0]
[1722011226276,13.11,182.1,182.03,20.0]
[1722011226471,18.6015,182.1,182.03,20.0]
[1722011226692,18.6015,182.1,182.02,6.3546]
[1722011226693,13.11,182.09,182.04,13.11]
[1722011227103,13.11,182.09,182.03,13.11]
[1722011227308,13.11,182.09,182.04,13.11]
[1722011227469,5.4915,182.1,182.04,13.11]
[1722011227470,18.6015,182.1,182.04,13.11]
[1722011228473,13.11,182.09,182.0,16.3983]
[1722011228669,13.11,182.09,182.04,13.11]
[1722011228873,0.54764215,182.08,182.03,13.11]
[1722011229402,0.54764215,182.08,182.0,16.3983]
[1722011229614,13.11,182.09,182.04,13.11]
[1722011229974,18.6015,182.1,182.04,13.11]
[1722011230176,16.4335266,182.11,182.05,13.11]
[1722011230388,13.28,182.1,182.05,13.11]
[1722011231071,13.11,182.1,182.05,13.11]
[1722011231285,29.5435266,182.11,182.06,13.11]
[1722011231487,0.7916266,182.11,182.1,13.11]
[1722011232215,0.7916266,182.11,182.09,13.11]
[1722011232790,0.7916266,182.11,182.1,13.11]
[1722011233090,0.7916266,182.11,182.09,13.11]
[1722011233823,0.7916266,182.11,182.01,1.09824494]
[1722011233986,0.7916266,182.11,182.07,13.11]
[1722011234188,0.7916266,182.11,182.01,66.09824494]
[1722011234189,0.7916266,182.11,182.06,13.11]
[1722011234411,0.7916266,182.11,182.05,13.11]
[1722011234412,0.54764215,182.1,182.05,13.11]
[1722011234805,13.9016266,182.11,182.05,13.11]
[1722011235123,0.7916266,182.11,182.07,13.11]
[1722011236006,0.7916266,182.11,182.08,13.11]
[1722011236196,0.7916266,182.11,182.09,13.11]
[1722011237292,0.7916266,182.11,182.1,13.11]
[1722011239133,0.7916266,182.11,182.05,32.1783]
[1722011239418,0.7916266,182.11,182.06,65.0]
[1722011239829,0.7916266,182.11,182.06,45.0]
[1722011240123,0.7916266,182.11,182.01,6.2575]
[1722011240330,0.7916266,182.11,181.99,1.09841429]
[1722011240494,6.2828266,182.11,181.99,1.09841429]
[1722011240909,6.2828266,182.11,181.98,32.78231562]
[1722011241332,6.03914215,182.1,181.98,31.68378902]
[1722011241499,0.17,182.09,181.98,26.1]
[1722011241994,0.54764215,182.08,181.98,26.1]
[1722011242499,0.17,182.09,181.95,21.75872567]
[1722011242500,5.4927,182.06,181.95,21.75872567]
[1722011242699,0.54764215,182.05,181.95,16.4402]
[1722011242923,6.03994215,182.08,181.95,16.4402]
[1722011243127,0.54764215,182.08,181.95,16.4402]
[1722011243323,0.17,182.07,181.95,16.4402]
[1722011244425,0.17,182.07,181.97,26.1]
[1722011244634,0.17,182.07,181.98,20.0]
[1722011244827,0.71764215,182.07,181.98,20.0]
[1722011245197,0.17,182.07,181.98,20.0]
[1722011245408,0.71764215,182.07,181.98,20.0]
[1722011245612,0.17,182.07,181.98,20.0]
[1722011246608,20.54764215,182.09,181.98,20.0]
[1722011246930,0.17,182.08,181.98,20.0]
[1722011247452,0.17,182.08,181.98,21.09879509]
[1722011247729,16.3096,182.1,181.98,20.0]
[1722011248734,21.8011,182.1,181.98,21.09866705]
[1722011248938,0.17,182.09,181.98,20.0]
[1722011249528,0.17,182.09,181.98,21.09866849]
[1722011249711,0.17,182.09,181.98,20.0]
[1722011250033,45.71764215,182.09,181.98,20.0]
[1722011250233,45.17,182.09,181.98,20.0]
[1722011250737,50.6618,182.09,181.98,20.0]
[1722011251031,45.17,182.09,181.98,20.0]
[1722011251833,0.17,182.09,181.98,20.0]
[1722011252346,0.17,182.09,181.99,1.09866463]
[1722011253831,0.5683237,182.09,181.99,1.09866463]
[1722011254241,0.5683237,182.09,181.98,20.0]
[1722011254554,5.4923,182.08,181.99,1.09862382]
[1722011254855,5.493,182.05,181.98,20.0]
[1722011255266,0.17,182.04,181.96,20.0]
[1722011255430,0.17,182.05,181.96,21.09890791]
[1722011256159,22.4811,182.03,181.94,26.1]
[1722011256452,22.4811,182.03,181.9,5.58378902]
[1722011256453,27.9748,182.03,181.9,5.58378902]
[1722011256660,22.4811,182.03,181.9,6.68281049]
[1722011257742,22.4811,182.03,181.91,65.0]
[1722011258638,0.54764215,182.02,181.91,65.0]
[1722011258844,22.6511,182.03,181.91,65.0]
[1722011259041,22.4811,182.03,181.92,1.09903671]
[1722011259372,0.17,182.02,181.92,26.1]
[1722011259550,0.17,182.02,181.93,20.0]
[1722011260143,0.71764215,182.02,181.93,20.0]
[1722011260569,0.17,182.02,181.93,20.0]
[1722011260934,22.4811,182.03,181.94,1.09901785]
[1722011261738,22.4811,182.03,181.94,46.09891493]
[1722011261934,22.4811,182.03,181.95,20.0]
[1722011262459,0.54764215,182.02,181.95,20.0]
[1722011262639,0.54764215,182.02,181.93,20.0]
[1722011263870,22.4811,182.03,181.93,20.0]
[1722011264165,0.54764215,182.02,181.93,20.0]
[1722011265243,0.54764215,182.02,181.92,26.1]
[1722011266374,27.9747,182.03,181.93,1.09903724]
[1722011266575,0.54764215,182.01,181.89,26.1]
[1722011267042,0.17,182.0,181.89,26.1]
[1722011267373,16.3307,181.98,181.86,26.1]
[1722011267578,16.3307,181.98,181.87,1.09935791]
[1722011267872,6.1762,181.96,181.85,26.1]
[1722011268256,0.54764215,181.95,181.85,26.1]
[1722011269070,6.1762,181.96,181.85,26.1]
[1722011269368,6.1762,181.96,181.86,20.0]
[1722011269570,6.1762,181.96,181.86,21.09943106]
[1722011269751,6.1762,181.96,181.86,20.0]
[1722011271466,6.1762,181.96,181.86,21.09938353]
[1722011272174,6.1762,181.96,181.86,20.0]
[1722011272841,6.1762,181.96,181.87,45.0]
[1722011273474,16.3307,181.98,181.91,26.1]
[1722011273657,16.3307,181.98,181.92,21.09906633]
[1722011274052,16.3307,181.98,181.93,1.09906733]
[1722011274574,16.3307,181.98,181.92,20.0]
[1722011274746,6.2938,182.01,181.94,26.1]
[1722011275151,15.9004237,182.02,181.95,45.0]
[1722011277570,15.9004237,182.02,181.96,1.09879741]
[1722011279876,15.9004237,182.02,181.95,45.0]
[1722011280087,15.9004237,182.02,181.94,26.1]
[1722011280661,15.9004237,182.02,181.95,1.09895238]
[1722011280976,15.9004237,182.02,181.96,1.09887423]
[1722011281169,15.9004237,182.02,181.94,26.1]
[1722011281360,15.9004237,182.02,181.95,1.09893522]
[1722011281561,15.9004237,182.02,181.96,1.0988639]
[1722011283176,15.9004237,182.02,181.95,45.0]
[1722011284192,15.9004237,182.02,181.94,26.1]
[1722011284398,15.9004237,182.02,181.91,26.1]
[1722011284556,15.9004237,182.02,181.92,1.09898204]
[1722011284765,15.9004237,182.02,181.93,1.09898402]
[1722011286398,15.9004237,182.02,181.93,1.09898285]
[1722011286972,15.9004237,182.02,181.92,65.0]
[1722011288887,15.9004237,182.02,181.92,66.0988649]
[1722011289292,15.9004237,182.02,181.92,66.09886425]
[1722011290271,15.9004237,182.02,181.93,1.09886369]
[1722011291116,15.9004237,182.02,181.99,13.07]
[1722011293227,15.9004237,182.02,181.98,13.07]
[1722011293529,15.9004237,182.02,181.97,13.07]
[1722011294400,15.9004237,182.02,181.99,13.07]
[1722011294805,15.9004237,182.02,182.0,13.07]
[1722011295850,15.9004237,182.02,182.01,13.07]
[1722011297426,0.3983237,182.02,182.01,13.07]
[1722011298135,0.3983237,182.02,182.0,13.07]
[1722011298335,0.3983237,182.02,181.99,13.07]
[1722011298730,0.3983237,182.02,182.0,13.07]
[1722011302637,0.3983237,182.02,181.99,13.07]
[1722011303342,0.3983237,182.02,181.98,13.07]
[1722011304840,0.3983237,182.02,181.99,13.07]
[1722011308750,0.3983237,182.02,181.98,13.07]
[1722011309951,0.3983237,182.02,182.0,13.07]